fUST/lending_fUST_20260301
["ID","MTS","AMOUNT","RATE_DAILY","PERIOD"]
[406937233,1772302243362,-1986.10994253,0.00022494,2]
[406937234,1772302243371,-312.0,0.00022595,2]
[406937235,1772302243380,-600.0,0.00023,2]
[406937236,1772302243390,-326.0,0.00023014,7]
[406937237,1772302243399,-500.0,0.00023223,2]
[406937238,1772302243408,-500.0,0.00023223,2]
[406937239,1772302243418,-500.0,0.00023223,2]
[406937240,1772302243427,-187.78006525,0.00023223,2]
[406937241,1772302243436,-500.0,0.00023223,2]
[406937242,1772302243445,-194.72792766,0.00023223,2]
[406937243,1772302243455,-201.93286099,0.00023223,2]
[406937244,1772302243464,-500.0,0.00023223,2]
[406937245,1772302243473,-209.40437684,0.00023223,2]
[406937246,1772302243482,-500.0,0.00023223,2]
[406937247,1772302243491,-217.15233878,0.00023223,2]
[406937248,1772302243500,-500.0,0.00023223,2]
[406937249,1772302243509,-225.18697532,0.00023223,2]
[406937250,1772302243518,-233.51889341,0.00023223,2]
[406937251,1772302243528,-335.1334969,0.00023223,2]
[406937252,1772302243537,-2487.15318209,0.00023223,2]
[406937253,1772302243546,-431.0,0.00023304,2]
[406937254,1772302243556,-729.0,0.00023304,2]
[406937255,1772302243565,-720.0,0.00023381,10]
[406937256,1772302243575,-1311.63914976,0.00023771,2]
[406937257,1772302243584,-600.0,0.00024,2]
[406937258,1772302243593,-461.0216926,0.00024,5]
[406937259,1772302243605,-998.21477852,0.00024,5]
[406937269,1772302245812,-640.69882257,0.00019302,2]
[406937270,1772302245822,-500.0,0.00019302,2]
[406937271,1772302245832,-500.0,0.00019302,2]
[406937272,1772302245841,-500.0,0.00019302,2]
[406937273,1772302245850,-433.24274249,0.00019302,2]
[406937274,1772302245860,-193.90300721,0.00019302,2]
[406937275,1772302245870,-500.0,0.00019302,2]
[406937276,1772302245879,-391.28103404,0.00019302,2]
[406937277,1772302245887,-1033.75154241,0.00023,2]
[406937278,1772302245897,-3728.96123985,0.00024,5]
[406937279,1772302245908,-1811.80228903,0.00024,5]
[406937280,1772302245917,-1028.0,0.00024,2]
[406937281,1772302245927,-558.0,0.00024,10]
[406937282,1772302245936,-328.0,0.00024164,7]
[406937283,1772302245945,-339.0,0.00024595,2]
[406937284,1772302245954,-2048.06528646,0.00024615,2]
[406937285,1772302245964,-83.02015498,0.00024658,2]
[406937286,1772302246189,-66.97984502,0.00024658,2]
[406937287,1772302246199,-181.0,0.00024712,14]
[406937288,1772302246208,-600.0,0.0002479,2]
[406937289,1772302246217,-400.0,0.000248,3]
[406937290,1772302246227,-247.18954077,0.000249,2]
[406937291,1772302246237,-235.35295353,0.000249,2]
[406937406,1772303438042,-500.0,0.00013699,2]
[406937407,1772303438052,-1000.0,0.00014247,2]
[406937408,1772303438062,-1500.0,0.00014795,2]
[406937409,1772303438072,-1000.0,0.00015162,4]
[406937410,1772303438082,-2000.0,0.00015342,2]
[406937411,1772303438092,-2525.86403488,0.0001589,2]
[406937412,1772303438101,-300.0,0.00020958,2]
[406937413,1772303438111,-209.58821985,0.00020959,2]
[406937414,1772303438120,-791.00653045,0.00020959,2]
[406937415,1772303438130,-150.0,0.0002115,2]
[406937416,1772303438140,-506.7766069,0.00021341,2]
[406937417,1772303438149,-431.0,0.00021793,2]
[406937419,1772303438159,-561.63026874,0.00021954,2]
[406937421,1772303438168,-569.01887231,0.00021967,2]
[406937422,1772303438178,-744.89972287,0.00022733,2]
[406937423,1772303438187,-157.75354124,0.00022789,5]
[406937424,1772303438197,-395.0,0.00022798,2]
[406937425,1772303438206,-1342.83259137,0.00022814,2]
[406937426,1772303438216,-191.389294,0.00022826,2]
[406937427,1772303438225,-177.0,0.0002315,2]
[406937428,1772303438235,-1205.7965698,0.00023166,2]
[406937440,1772303440596,-511.0,0.00021967,10]
[406937441,1772303440607,-328.7203131,0.00023166,2]
[406937442,1772303440616,-682.17603806,0.00023166,2]
[406937462,1772303445612,-1117.94613914,0.00023166,2]
[406937463,1772303445622,-1283.46357653,0.00023166,2]
[406937534,1772304631764,-4950.630935,0.0001987,10]
[406937536,1772304631774,-150.0,0.00020172,2]
[406937538,1772304631783,-1000.0,0.00020559,6]
[406937540,1772304631792,-620.73984775,0.00020658,3]
[406937542,1772304631801,-564.3107668,0.00020867,3]
[406937544,1772304631810,-1196.08855056,0.00020938,3]
[406937546,1772304631819,-192.83939296,0.00020959,2]
[406937548,1772304631828,-347.11090734,0.00020959,2]
[406937550,1772304631837,-617.08605749,0.00020959,2]
[406937552,1772304631846,-293.72126231,0.00020959,2]
[406937554,1772304631856,-1062.49890677,0.00021077,2]
[406937556,1772304631866,-2401.4097157,0.00021121,2]
[406937558,1772304631875,-3076.4897709,0.00021121,2]
[406937560,1772304631884,-395.247624,0.00021341,2]
[406937562,1772304631893,-1490.06811993,0.00021483,3]
[406937564,1772304631902,-177.0,0.00022172,2]
[406937566,1772304631911,-744.89972287,0.00022173,2]
[406937568,1772304631920,-1802.75068111,0.00022572,3]
[406937570,1772304631929,-7892.49504092,0.00023,2]
[406937572,1772304631940,-1296.5866397,0.00023,3]
[406937574,1772304631955,-929.47592414,0.00023066,2]
[406937576,1772304631964,-426.0,0.00023166,10]
[406937578,1772304631971,-166.0,0.00023166,3]
[406937580,1772304631979,-689.0,0.00023166,3]
[406937582,1772304631989,-166.0,0.00023166,3]
[406937584,1772304631998,-689.0,0.00023166,3]
[406937586,1772304632006,-689.0,0.00023166,3]
[406937588,1772304632014,-351.0,0.00023166,3]
[406937590,1772304632022,-694.54309605,0.00023166,3]
[406937592,1772304632031,-351.0,0.00023166,3]
[406937594,1772304632040,-363.98380452,0.00023166,3]
[406937596,1772304632050,-929.47592408,0.00023971,2]
[406937598,1772304632061,-1033.75154241,0.00024,2]
[406937600,1772304632071,-204.0,0.00024172,2]
[406937602,1772304632080,-2428.1158037,0.00024205,3]
[406937604,1772304632090,-744.89972287,0.00024205,3]
[406937606,1772304632099,-253.207421,0.00024205,2]
[406937607,1772304632108,-253.207421,0.00024205,2]
[406937609,1772304632118,-253.207421,0.00024205,2]
[406937611,1772304632127,-253.207421,0.00024205,2]
[406937613,1772304632136,-503.98073806,0.0002444,2]
[406937615,1772304632146,-291.0,0.00024658,14]
[406937617,1772304632155,-150.0,0.00024658,2]
[406937642,1772304632386,-500.0,0.00024747,2]
[406937644,1772304632396,-500.0,0.00024747,2]
[406937645,1772304632405,-640.69882257,0.00024747,2]
[406937647,1772304632415,-500.0,0.00024747,2]
[406937649,1772304632424,-193.90300721,0.00024747,2]
[406937651,1772304632433,-500.0,0.00024747,2]
[406937653,1772304632443,-433.24274249,0.00024747,2]
[406937655,1772304632454,-391.28103404,0.00024747,2]
[406937656,1772304632465,-1681.735369,0.00024748,2]
[406937658,1772304632474,-811.91882327,0.00024748,2]
[406937786,1772304640376,-618.94516342,0.00020073,2]
[406937827,1772304643017,-1611.22271189,0.00020073,2]
[406937829,1772304643027,-433.0,0.00020279,10]
[406937831,1772304643037,-869.81654573,0.00024748,2]
[406937833,1772304643046,-1681.735369,0.00024748,2]
[406937835,1772304643055,-1681.735369,0.00024748,2]
[406937837,1772304643065,-2740.79836499,0.00024749,3]
[406937839,1772304643074,-929.47592408,0.00024876,2]
[406937841,1772304643083,-51941.73041945,0.0002488,10]
[406938127,1772304646019,-8743.67958055,0.0002488,10]
[406938130,1772304646030,-1190.0,0.0002488,10]
[406938132,1772304646042,-60576.6507762,0.0002489,10]
[406938167,1772305320156,-590.38461927,0.00020189,7]
[406938168,1772305320175,-21.32452189,0.00020189,7]
[406938169,1772305320191,-590.38461927,0.00020189,2]
[406938243,1772305831966,-828.16150765,0.0001485,2]
[406938245,1772305831976,-159.6877684,0.00015,2]
[406938248,1772305831988,-1163.20743793,0.00015,2]
[406938250,1772305831999,-613.66710942,0.00015,2]
[406938253,1772305832022,-3265.95127766,0.00015,2]
[406938255,1772305832030,-1000.0,0.00015229,4]
[406938257,1772305832040,-150.0,0.00015866,2]
[406938259,1772305832049,-177.0,0.00017866,2]
[406938261,1772305832059,-204.0,0.00019866,2]
[406938263,1772305832068,-471.98136298,0.00020189,2]
[406938265,1772305832077,-1022.72261194,0.00020351,2]
[406938267,1772305832086,-1076.0,0.0002042,10]
[406938269,1772305832095,-3000.0,0.00021,2]
[406938271,1772305832105,-3000.0,0.0002101,2]
[406938273,1772305832113,-1092.76866415,0.0002102,2]
[406938500,1772305843227,-1032.47683133,0.0002102,2]
[406938502,1772305843389,-874.75450452,0.0002102,2]
[406938503,1772305843399,-807.0,0.0002102,10]
[406938504,1772305843409,-3000.0,0.0002103,2]
[406938505,1772305843419,-3000.0,0.0002104,2]
[406938506,1772305843429,-192.15,0.0002104,2]
[406938507,1772305843441,-3000.0,0.0002105,2]
[406938509,1772305843451,-3000.0,0.0002106,2]
[406938510,1772305843460,-3000.0,0.0002107,2]
[406938511,1772305843470,-2373.35525112,0.0002108,2]
[406938519,1772305845651,-626.64474888,0.0002108,2]
[406938521,1772305845661,-403.0,0.0002108,10]
[406938522,1772305845671,-3000.0,0.0002109,2]
[406938523,1772305845681,-3000.0,0.000211,2]
[406938524,1772305845692,-3000.0,0.0002111,2]
[406938525,1772305845703,-3000.0,0.0002112,2]
[406938526,1772305845713,-3000.0,0.0002113,2]
[406938527,1772305845723,-3000.0,0.0002114,2]
[406938528,1772305845733,-5505.689483,0.0002115,2]
[406938529,1772305845742,-231.0,0.00021866,2]
[406938530,1772305845751,-1664.76581718,0.00021953,2]
[406938532,1772305845761,-163.0,0.00022,2]
[406938533,1772305845771,-163.0,0.00022192,7]
[406938534,1772305845780,-169.423421,0.00022206,2]
[406938535,1772305845790,-163.0,0.00023014,7]
[406938536,1772305845800,-169.423421,0.00023141,2]
[406938537,1772305845810,-187.78006525,0.00023747,2]
[406938538,1772305845820,-247.45010913,0.00023747,2]
[406938539,1772305845829,-258.0,0.00023866,2]
[406938540,1772305845839,-744.89972287,0.00023874,2]
[406938541,1772305845849,-25037.93573223,0.00024,2]
[406938542,1772305845858,-169.423421,0.00024076,2]
[406938543,1772305845868,-1016.2789654,0.00024131,2]
[406938544,1772305845878,-163.0,0.00024164,7]
[406938545,1772305845888,-207.6772452,0.00024564,2]
[406938546,1772305845898,-157.0,0.00024658,14]
[406938547,1772305845908,-150.0,0.00024658,2]
[406938548,1772305845918,-479.73,0.0002483,3]
[406938549,1772305845927,-8157.47382079,0.0002488,10]
[406938550,1772305846495,-404.0,0.00022,10]
[406938551,1772305846507,-5364.6,0.0002488,10]
[406938552,1772305846519,-8421.84794372,0.0002488,10]
[406938565,1772306639685,388.02580248,0.000158,10]
[406938603,1772307032189,-150.0,0.00016171,2]
[406938605,1772307032198,-213.81938054,0.000162,2]
[406938607,1772307032207,-24.20642194,0.00016201,2]
[406938676,1772307038506,-189.61295859,0.00016201,2]
[406938677,1772307038517,-213.81938053,0.00016202,2]
[406938678,1772307038527,-935.33658395,0.000163,3]
[406938679,1772307038537,-216.81195861,0.00016501,3]
[406938716,1772307043958,-709.49396542,0.00016501,3]
[406938717,1772307043968,-1683.82714573,0.00016535,2]
[406938718,1772307043978,-166.86727014,0.00016535,2]
[406938719,1772307043987,-744.89972287,0.00017818,2]
[406938720,1772307043997,-177.0,0.00018171,2]
[406938721,1772307044007,-300.0,0.00019055,2]
[406938722,1772307044015,-300.0,0.00019055,2]
[406938723,1772307044024,-912.0,0.00019055,2]
[406938724,1772307044034,-2400.23179271,0.00019056,2]
[406938725,1772307044043,-204.0,0.00020171,2]
[406938726,1772307044052,-403.0,0.00020633,10]
[406938727,1772307044061,-163.0,0.00022,2]
[406938728,1772307044071,-231.0,0.00022171,2]
[406938729,1772307044080,-8005.93101835,0.00022543,2]
[406938730,1772307044089,-839.6270619,0.0002263,2]
[406938731,1772307044097,-1003.0,0.00023,15]
[406938732,1772307044107,-163.0,0.00023014,7]
[406938733,1772307044116,-163.0,0.00024164,7]
[406938734,1772307044126,-258.0,0.00024171,2]
[406938735,1772307044136,-253.0,0.00024658,14]
[406938736,1772307044145,-150.0,0.00024658,2]
[406938737,1772307044155,-13295.84103779,0.0002469,2]
[406938749,1772307046644,-403.0,0.00022,10]
[406938750,1772307046654,-4423.78851806,0.0002469,2]
[406938751,1772307046664,-14400.93888532,0.000248,10]
[406938752,1772307046674,-1516.0,0.00024847,9]
[406938753,1772307046684,-1345.388295,0.00024847,2]
[406938754,1772307046694,-1345.388295,0.00024847,2]
[406938755,1772307046705,-1345.388295,0.00024847,2]
[406938756,1772307046716,-1345.388295,0.00024847,2]
[406938757,1772307046731,-202.565937,0.0002489,2]
[406938758,1772307046742,-202.565937,0.0002489,2]
[406938759,1772307046753,-202.565937,0.0002489,2]
[406938760,1772307046763,-202.565937,0.0002489,2]
[406938761,1772307046773,-1345.388295,0.0002489,2]
[406938762,1772307046784,-1345.388295,0.0002489,2]
[406938763,1772307046798,-1345.388295,0.0002489,2]
[406938764,1772307046809,-1345.388295,0.0002489,2]
[406938765,1772307046818,-16286.91789873,0.0002489,10]
[406938766,1772307046831,-8421.85279796,0.0002489,10]
[406938769,1772307241464,5000.0,0.000158,10]
[406938770,1772307249842,419.82822598,0.000158,10]
[406938771,1772307276313,176.0,0.0001001,2]
[406938773,1772307343425,8467.84622371,0.000158,10]
[406938774,1772307396959,10000.0,0.0001001,2]
[406938775,1772307470487,10000.0,0.0001001,2]
[406938776,1772307492554,10000.0,0.0001001,2]
[406938777,1772307515434,10000.0,0.0001001,2]
[406938778,1772307531826,10000.0,0.0001001,2]
[406938779,1772307560623,10000.0,0.0001001,2]
[406938780,1772307579880,10000.0,0.0001001,2]
[406938781,1772307596450,10000.0,0.0001001,2]
[406938782,1772307616754,10000.0,0.0001001,2]
[406938783,1772307632643,10000.0,0.0001001,2]
[406938784,1772307653139,8214.68,0.0001001,2]
[406938788,1772308079980,5000.0,0.0001001,2]
[406938789,1772308101857,273.49852639,0.0001001,2]
[406938824,1772308232435,-562.0,0.00010161,2]
[406938826,1772308232445,-150.0,0.00010161,2]
[406938828,1772308232454,-500.0,0.00010228,2]
[406938830,1772308232464,-200.0,0.00010291,2]
[406938832,1772308232480,-209.62,0.000119,2]
[406938834,1772308232489,-300.0,0.00012099,2]
[406938836,1772308232499,-300.0,0.00012099,2]
[406938838,1772308232508,-300.0,0.00012099,2]
[406938840,1772308232518,-300.0,0.00012099,2]
[406938842,1772308232527,-1200.0,0.00012099,2]
[406938844,1772308232537,-808.00129139,0.000121,2]
[406939001,1772308238500,-191.99870861,0.000121,2]
[406939002,1772308238510,-1000.0,0.000121,2]
[406939003,1772308238520,-1000.0,0.000121,2]
[406939004,1772308238530,-1000.0,0.000121,2]
[406939005,1772308238540,-1000.0,0.000121,2]
[406939006,1772308238550,-50000.0,0.000121,2]
[406939007,1772308238559,-177.0,0.00012161,2]
[406939008,1772308238569,-500.0,0.00012212,2]
[406939009,1772308238578,-500.0,0.00012212,2]
[406939010,1772308238587,-478.02347279,0.00012212,2]
[406939011,1772308238597,-500.0,0.00012212,2]
[406939012,1772308238607,-500.0,0.00012212,2]
[406939013,1772308238617,-500.0,0.00012212,2]
[406939014,1772308238627,-500.0,0.00012212,2]
[406939015,1772308238637,-500.0,0.00012212,2]
[406939016,1772308238646,-500.0,0.00012212,2]
[406939017,1772308238655,-500.0,0.00012212,2]
[406939018,1772308238664,-500.0,0.00012212,2]
[406939019,1772308238674,-500.0,0.00012212,2]
[406939020,1772308238683,-500.0,0.00012212,2]
[406939021,1772308238693,-500.0,0.00012212,2]
[406939022,1772308238703,-500.0,0.00012212,2]
[406939023,1772308238712,-500.0,0.00012212,2]
[406939024,1772308238722,-500.0,0.00012212,2]
[406939025,1772308238733,-500.0,0.00012212,2]
[406939026,1772308238743,-500.0,0.00012212,2]
[406939027,1772308238752,-500.0,0.00012212,2]
[406939028,1772308238762,-500.0,0.00012212,2]
[406939029,1772308238772,-500.0,0.00012212,2]
[406939030,1772308238781,-500.0,0.00012212,2]
[406939031,1772308238790,-500.0,0.00012212,2]
[406939032,1772308238800,-500.0,0.00012212,2]
[406939033,1772308238810,-500.0,0.00012212,2]
[406939034,1772308238819,-500.0,0.00012212,2]
[406939035,1772308238829,-500.0,0.00012212,2]
[406939036,1772308238838,-500.0,0.00012212,2]
[406939037,1772308238847,-500.0,0.00012212,2]
[406939038,1772308238857,-500.0,0.00012212,2]
[406939039,1772308238867,-500.0,0.00012212,2]
[406939040,1772308238876,-500.0,0.00012212,2]
[406939041,1772308238885,-500.0,0.00012212,2]
[406939042,1772308238894,-500.0,0.00012212,2]
[406939043,1772308238904,-500.0,0.00012212,2]
[406939044,1772308238913,-500.0,0.00012212,2]
[406939045,1772308238924,-500.0,0.00012212,2]
[406939046,1772308238935,-500.0,0.00012212,2]
[406939047,1772308238945,-370.0,0.00012212,2]
[406939048,1772308238954,-500.0,0.00012212,2]
[406939049,1772308238964,-500.0,0.00012212,2]
[406939050,1772308238974,-500.0,0.00012212,2]
[406939051,1772308238985,-500.0,0.00012212,2]
[406939052,1772308238995,-500.0,0.00012212,2]
[406939053,1772308239004,-500.0,0.00012212,2]
[406939054,1772308239014,-500.0,0.00012212,2]
[406939055,1772308239024,-500.0,0.00012212,2]
[406939056,1772308239035,-500.0,0.00012212,2]
[406939057,1772308239045,-170.28515548,0.00012212,2]
[406939058,1772308239056,-500.0,0.00012212,2]
[406939059,1772308239067,-500.0,0.00012212,2]
[406939060,1772308239078,-500.0,0.00012212,2]
[406939061,1772308239088,-500.0,0.00012212,2]
[406939062,1772308239098,-500.0,0.00012212,2]
[406939063,1772308239108,-500.0,0.00012212,2]
[406939064,1772308239118,-500.0,0.00012212,2]
[406939065,1772308239129,-500.0,0.00012212,2]
[406939066,1772308239139,-500.0,0.00012212,2]
[406939067,1772308239149,-500.0,0.00012212,2]
[406939068,1772308239159,-500.0,0.00012212,2]
[406939069,1772308239170,-500.0,0.00012212,2]
[406939070,1772308239180,-500.0,0.00012212,2]
[406939071,1772308239189,-500.0,0.00012212,2]
[406939072,1772308239200,-500.0,0.00012212,2]
[406939073,1772308239210,-500.0,0.00012212,2]
[406939074,1772308239220,-500.0,0.00012212,2]
[406939075,1772308239232,-500.0,0.00012212,2]
[406939076,1772308239242,-500.0,0.00012212,2]
[406939077,1772308239252,-500.0,0.00012212,2]
[406939078,1772308239261,-500.0,0.00012212,2]
[406939079,1772308239271,-500.0,0.00012212,2]
[406939080,1772308239280,-500.0,0.00012212,2]
[406939081,1772308239290,-500.0,0.00012212,2]
[406939082,1772308239299,-500.0,0.00012212,2]
[406939083,1772308239308,-500.0,0.00012212,2]
[406939084,1772308239318,-500.0,0.00012212,2]
[406939085,1772308239327,-500.0,0.00012212,2]
[406939086,1772308239338,-500.0,0.00012212,2]
[406939087,1772308239347,-242.01311832,0.00012212,2]
[406939088,1772308239357,-500.0,0.00012212,2]
[406939089,1772308239367,-500.0,0.00012212,2]
[406939090,1772308239376,-500.0,0.00012212,2]
[406939091,1772308239386,-500.0,0.00012212,2]
[406939092,1772308239395,-500.0,0.00012212,2]
[406939093,1772308239404,-500.0,0.00012212,2]
[406939094,1772308239414,-500.0,0.00012212,2]
[406939095,1772308239424,-500.0,0.00012212,2]
[406939096,1772308239433,-500.0,0.00012212,2]
[406939097,1772308239442,-500.0,0.00012212,2]
[406939098,1772308239452,-500.0,0.00012212,2]
[406939099,1772308239461,-500.0,0.00012212,2]
[406939100,1772308239471,-500.0,0.00012212,2]
[406939101,1772308239482,-500.0,0.00012212,2]
[406939102,1772308239492,-500.0,0.00012212,2]
[406939103,1772308239501,-500.0,0.00012212,2]
[406939104,1772308239511,-500.0,0.00012212,2]
[406939105,1772308239520,-500.0,0.00012212,2]
[406939106,1772308239529,-500.0,0.00012212,2]
[406939107,1772308239540,-500.0,0.00012212,2]
[406939108,1772308239549,-500.0,0.00012212,2]
[406939109,1772308239559,-500.0,0.00012212,2]
[406939110,1772308239568,-500.0,0.00012212,2]
[406939111,1772308239578,-500.0,0.00012212,2]
[406939112,1772308239587,-500.0,0.00012212,2]
[406939113,1772308239597,-500.0,0.00012212,2]
[406939114,1772308239606,-500.0,0.00012212,2]
[406939115,1772308239615,-297.834388,0.00012327,2]
[406939116,1772308239625,-233.32,0.00012327,2]
[406939117,1772308239634,-233.32,0.00012327,2]
[406939118,1772308239644,-233.32,0.00012327,2]
[406939119,1772308239653,-233.32,0.00012327,2]
[406939120,1772308239663,-783.0,0.00012329,2]
[406939121,1772308239673,-783.0,0.00012329,2]
[406939122,1772308239682,-522.0,0.00012329,2]
[406939123,1772308239692,-435.0,0.00012329,2]
[406939124,1772308239701,-362.5,0.00012329,2]
[406939125,1772308239710,-302.08,0.00012329,2]
[406939126,1772308239719,-251.73,0.00012329,2]
[406939127,1772308239731,-209.78,0.00012329,2]
[406939128,1772308239740,-174.81,0.00012329,2]
[406939129,1772308239750,-874.1,0.00012329,2]
[406939130,1772308239759,-233.32,0.00012329,2]
[406939131,1772308239769,-233.32,0.00012329,2]
[406939132,1772308239778,-233.32,0.00012329,2]
[406939133,1772308239787,-233.32,0.00012329,2]
[406939134,1772308239797,-500.0,0.00012485,2]
[406939135,1772308239806,-500.0,0.00012759,2]
[406939136,1772308239815,-500.0,0.00013033,2]
[406939137,1772308239826,-674.360178,0.00013135,2]
[406939138,1772308239835,-500.0,0.00013272,2]
[406939139,1772308239845,-189.38432872,0.00013272,2]
[406939140,1772308239854,-493.29580372,0.00013272,2]
[406939141,1772308239865,-500.0,0.00013273,2]
[406939142,1772308239874,-500.0,0.00013273,2]
[406939143,1772308239883,-500.0,0.00013273,2]
[406939144,1772308239892,-500.0,0.00013273,2]
[406939145,1772308239902,-500.0,0.00013273,2]
[406939146,1772308239913,-500.0,0.00013273,2]
[406939147,1772308239924,-500.0,0.00013273,2]
[406939148,1772308239933,-500.0,0.00013273,2]
[406939149,1772308239943,-500.0,0.00013273,2]
[406939150,1772308239952,-500.0,0.00013273,2]
[406939151,1772308239962,-500.0,0.00013273,2]
[406939153,1772308239971,-403.26235717,0.00013273,2]
[406939154,1772308239981,-500.0,0.00013273,2]
[406939155,1772308239991,-500.0,0.00013273,2]
[406939156,1772308240000,-500.0,0.00013273,2]
[406939157,1772308240010,-500.0,0.00013273,2]
[406939158,1772308240019,-500.0,0.00013273,2]
[406939159,1772308240029,-500.0,0.00013273,2]
[406939160,1772308240039,-500.0,0.00013273,2]
[406939161,1772308240048,-500.0,0.00013273,2]
[406939162,1772308240057,-500.0,0.00013273,2]
[406939163,1772308240066,-320.15398102,0.00013273,2]
[406939164,1772308240075,-500.0,0.00013273,2]
[406939165,1772308240086,-500.0,0.00013273,2]
[406939166,1772308240096,-500.0,0.00013273,2]
[406939167,1772308240105,-407.95291404,0.00013273,2]
[406939168,1772308240114,-500.0,0.00013273,2]
[406939170,1772308240124,-500.0,0.00013273,2]
[406939171,1772308240133,-500.0,0.00013273,2]
[406939173,1772308240143,-500.0,0.00013273,2]
[406939175,1772308240153,-646.19912103,0.00013273,2]
[406939177,1772308240163,-500.0,0.00013273,2]
[406939178,1772308240172,-500.0,0.00013273,2]
[406939179,1772308240182,-500.0,0.00013273,2]
[406939180,1772308240191,-233.32,0.00013273,2]
[406939181,1772308240201,-233.32,0.00013273,2]
[406939182,1772308240210,-233.32,0.00013273,2]
[406939183,1772308240220,-233.32,0.00013273,2]
[406939184,1772308240232,-420.0,0.00013281,2]
[406939186,1772308240242,-420.0,0.00013281,2]
[406939187,1772308240251,-420.0,0.00013281,2]
[406939188,1772308240260,-500.0,0.00013307,2]
[406939189,1772308240269,-1680.0,0.00013309,2]
[406939190,1772308240278,-600.0,0.00013537,2]
[406939192,1772308240287,-500.0,0.00013581,2]
[406939194,1772308240296,-150.0,0.00013673,2]
[406939196,1772308240306,-300.0,0.00013673,2]
[406939198,1772308240315,-674.360178,0.00013687,2]
[406939200,1772308240324,-150.02050109,0.00013698,2]
[406939201,1772308240333,-500.0,0.00013698,2]
[406939202,1772308240342,-500.0,0.00013698,2]
[406939203,1772308240351,-500.0,0.00013698,2]
[406939204,1772308240360,-349.17795885,0.00013698,2]
[406939205,1772308240370,-155.0,0.00013698,2]
[406939206,1772308240379,-360.19320835,0.00013698,2]
[406939207,1772308240388,-761.214956,0.00013699,2]
[406939209,1772308240397,-151.0,0.00013699,2]
[406939211,1772308240407,-160.94615077,0.00013699,2]
[406939213,1772308240416,-500.0,0.00013699,2]
[406939215,1772308240425,-500.0,0.00013699,2]
[406939217,1772308240434,-221.83265097,0.00013699,2]
[406939218,1772308240444,-621.94832915,0.00013699,2]
[406939220,1772308240454,-500.0,0.00013699,2]
[406939222,1772308240463,-500.0,0.00013699,2]
[406939224,1772308240472,-500.0,0.00013699,2]
[406939226,1772308240482,-160.88365486,0.00013699,2]
[406939228,1772308240492,-306.24148125,0.00013699,2]
[406939230,1772308240501,-500.0,0.00013699,2]
[406939232,1772308240511,-471.72988038,0.00013699,2]
[406939234,1772308240520,-500.0,0.00013699,2]
[406939236,1772308240530,-500.0,0.00013699,2]
[406939238,1772308240539,-500.0,0.00013699,2]
[406939240,1772308240549,-150.0,0.00013699,2]
[406939242,1772308240558,-500.0,0.00013699,2]
[406939244,1772308240568,-500.0,0.00013699,2]
[406939246,1772308240577,-500.0,0.00013699,2]
[406939248,1772308240586,-500.0,0.00013699,2]
[406939250,1772308240595,-500.0,0.00013699,2]
[406939252,1772308240604,-500.0,0.00013699,2]
[406939275,1772308240801,-500.0,0.00013699,2]
[406939277,1772308240811,-500.0,0.00013699,2]
[406939279,1772308240820,-500.0,0.00013699,2]
[406939281,1772308240829,-500.0,0.00013699,2]